lending/lending_fUSD_20241005
["ID","MTS","AMOUNT","RATE_DAILY","PERIOD"]
[339909254,1728147198993,-603.49,0.00043698,120]
[339909255,1728147199003,-530.47388891,0.00043698,120]
[339909256,1728147199012,-652.66,0.00043698,120]
[339909257,1728147199022,-500.0,0.00043698,120]
[339909258,1728147199033,-500.0,0.00043698,120]
[339909259,1728147199042,-857.16,0.00043698,120]
[339909260,1728147199052,-730.24,0.00043698,120]
[339909261,1728147199062,-1523.37,0.00043698,120]
[339909262,1728147199071,-500.0,0.00043698,120]
[339909263,1728147199081,-500.0,0.00043698,120]
[339909264,1728147199091,-1257.63,0.00043698,120]
[339909265,1728147199102,-847.59,0.00043698,120]
[339909266,1728147199112,-500.0,0.00043698,120]
[339909267,1728147199122,-500.0,0.00043698,120]
[339909268,1728147199131,-500.0,0.00043698,120]
[339909269,1728147199141,-708.16,0.00043698,120]
[339909270,1728147199151,-318.54400414,0.00043698,120]
[339909271,1728147199160,-500.0,0.00043698,120]
[339909272,1728147199170,-1110.69,0.00043698,120]
[339909273,1728147199180,-351.83505545,0.00043698,120]
[339909274,1728147199190,-734.55,0.00043698,120]
[339909275,1728147199200,-500.0,0.00043698,120]
[339909276,1728147199209,-621.54,0.00043698,120]
[339909277,1728147199219,-1207.12,0.00043698,120]
[339909278,1728147199229,-1418.21,0.00043698,120]
[339909279,1728147199239,-518.55693596,0.00043698,120]
[339909280,1728147199250,-500.0,0.00043698,120]
[339909281,1728147199260,-500.0,0.00043698,120]
[339909282,1728147199271,-1713.6,0.00043698,120]
[339909283,1728147199281,-501.97702823,0.00043698,120]
[339909284,1728147199291,-500.0,0.00043698,120]
[339909285,1728147199302,-596.62,0.00043698,120]
[339909286,1728147199312,-1763.97,0.00043698,120]
[339909287,1728147199323,-500.0,0.00043698,120]
[339909288,1728147199334,-500.0,0.00043698,120]
[339909289,1728147199345,-520.32,0.00043698,120]
[339909290,1728147199355,-1374.93,0.00043698,120]
[339909291,1728147199366,-814.88,0.00043698,120]
[339909292,1728147199589,-828.2,0.00043698,120]
[339909293,1728147199599,-500.0,0.00043698,120]
[339909294,1728147199609,-1238.46,0.00043698,120]
[339909295,1728147199619,-500.0,0.00043698,120]
[339909296,1728147199628,-904.62,0.00043698,120]
[339909297,1728147199638,-500.0,0.00043698,120]
[339909298,1728147199647,-1015.81,0.00043698,120]
[339909299,1728147199657,-934.77,0.00043698,120]
[339909300,1728147199666,-314.52439872,0.00043698,7]
[339909301,1728147199676,-1120.82,0.00043698,120]
[339909302,1728147199686,-790.26,0.00043698,120]
[339909303,1728147199696,-803.58,0.00043698,120]
[339909304,1728147199706,-629.14,0.00043698,120]
[339909305,1728147199717,-500.0,0.00043698,120]
[339909306,1728147199726,-500.0,0.00043698,120]
[339909307,1728147199736,-617.73,0.00043698,120]
[339909308,1728147199745,-816.66,0.00043698,120]
[339909309,1728147199755,-1168.27,0.00043698,120]
[339909310,1728147199765,-684.57,0.00043698,120]
[339909311,1728147199776,-500.0,0.00043698,120]
[339909312,1728147199785,-1440.54,0.00043698,120]
[339909313,1728147199795,-1163.33,0.00043698,120]
[339909314,1728147199805,-886.94,0.00043698,120]
[339909315,1728147199816,-790.06,0.00043698,120]
[339909316,1728147199825,-331.100519,0.00043798,119]
[339909317,1728147199835,-215.1632774,0.000438,120]
[339909318,1728147199844,-465.82386733,0.000438,30]
[339909319,1728147199854,-315.73,0.000438,120]
[339909320,1728147199864,-539.79573601,0.00043835,120]
[339909321,1728147199874,-1045.16807356,0.00043836,120]
[339909322,1728147199884,-187.416,0.00043853,69]
[339909323,1728147199893,-239.43283749,0.00043863,60]
[339909324,1728147199903,-40000.0,0.0004389,120]
[339909325,1728147199913,-63934.48314004,0.000439,120]
[339909326,1728147199922,-150.0,0.00043905,120]
[339909327,1728147199932,-500.0,0.00043968,60]
[339909328,1728147199941,-500.0,0.00043968,60]
[339909329,1728147199951,-600.0,0.00043968,60]
[339909330,1728147199960,-50832.26225941,0.0004398,30]
[339909331,1728147199970,-5629.49288683,0.0004399,10]
[339909332,1728147199979,-1000.0,0.00043999,120]
[339909333,1728147199989,-50000.0,0.00044,34]
[339909334,1728147199999,-50000.0,0.00044,44]
[339909335,1728147200009,-337.21755292,0.00044,120]
[339909336,1728147200018,-748.51447718,0.00044,120]
[339909337,1728147200028,-932.00309793,0.00044,120]
[339909338,1728147200038,-1624.06,0.00044,120]
[339909339,1728147200047,-1000.0,0.00044,120]
[339909340,1728147200061,-1000000.0,0.00044,120]
[339909341,1728147200071,-1000000.0,0.00044,120]
[339909342,1728147200080,-1197.43471179,0.00044,30]
[339909343,1728147200090,-500.87824,0.00044,57]
[339909344,1728147200099,-250.0,0.00044,30]
[339909345,1728147200110,-213.13136741,0.0004401,30]
[339909346,1728147200119,-150.0,0.0004401,30]
[339909347,1728147200129,-150.0,0.0004401,30]
[339909348,1728147200139,-150.0,0.0004401,30]
[339909349,1728147200148,-150.0,0.0004401,30]
[339909350,1728147200159,-274.92950994,0.0004401,30]
[339909351,1728147200169,-150.0,0.0004401,30]
[339909352,1728147200179,-150.0,0.0004401,30]
[339909353,1728147200189,-150.0,0.0004401,30]
[339909354,1728147200199,-150.0,0.0004401,30]
[339909355,1728147200208,-150.28640673,0.0004401,30]
[339909356,1728147200218,-150.0,0.0004401,30]
[339909357,1728147200228,-150.30018209,0.0004401,30]
[339909358,1728147200238,-150.0,0.0004401,30]
[339909359,1728147200248,-150.0,0.0004401,30]
[339909360,1728147200258,-213.13136741,0.00044059,30]
[339909361,1728147200268,-150.0,0.00044108,30]
[339909362,1728147200278,-213.13136741,0.00044109,30]
[339909363,1728147200288,-668.66,0.00044109,120]
[339909364,1728147200297,-1684.72,0.00044109,120]
[339909365,1728147200308,-500.0,0.00044109,120]
[339909366,1728147200317,-500.0,0.00044109,120]
[339909367,1728147200327,-150.0,0.00044109,120]
[339909368,1728147200337,-1155.52,0.00044109,120]
[339909369,1728147200347,-1004.11,0.00044109,120]
[339909370,1728147200356,-869.62,0.00044109,120]
[339909371,1728147200365,-594.78587884,0.00044109,120]
[339909372,1728147200375,-577.41,0.00044109,120]
[339909373,1728147200384,-1420.73,0.00044109,120]
[339909374,1728147200393,-500.0,0.00044109,120]
[339909375,1728147200402,-547.3,0.00044109,120]
[339909376,1728147200412,-548.25,0.00044109,120]
[339909377,1728147200421,-500.0,0.00044109,120]
[339909378,1728147200431,-634.58,0.00044109,120]
[339909379,1728147200441,-500.0,0.00044109,120]
[339909380,1728147200450,-593.12,0.00044109,120]
[339909381,1728147200460,-500.0,0.00044109,120]
[339909382,1728147200469,-529.51,0.00044109,120]
[339909383,1728147200480,-1227.07,0.00044109,120]
[339909384,1728147200491,-518.44,0.00044109,120]
[339909385,1728147200501,-500.0,0.00044109,120]
[339909386,1728147200511,-907.64,0.00044109,120]
[339909387,1728147200520,-500.0,0.00044109,120]
[339909388,1728147200530,-500.0,0.00044109,120]
[339909389,1728147200539,-500.0,0.00044109,120]
[339909390,1728147200549,-780.76,0.00044109,120]
[339909391,1728147200559,-500.0,0.00044109,120]
[339909392,1728147200569,-1147.66,0.00044109,120]
[339909393,1728147200578,-500.0,0.00044109,7]
[339909394,1728147200588,-1092.02,0.00044109,120]
[339909395,1728147200598,-500.0,0.00044109,120]
[339909396,1728147200608,-605.99,0.00044109,120]
[339909397,1728147200617,-500.0,0.00044109,120]
[339909398,1728147200627,-959.8,0.00044109,120]
[339909399,1728147200637,-597.47,0.00044109,120]
[339909400,1728147200647,-531.47179264,0.00044109,120]
[339909401,1728147200657,-500.0,0.00044109,120]
[339909402,1728147200667,-500.0,0.00044109,120]
[339909403,1728147200676,-500.0,0.00044109,120]
[339909404,1728147200686,-1254.87,0.00044109,120]
[339909405,1728147200695,-500.0,0.00044109,120]
[339909406,1728147200705,-500.0,0.00044109,120]
[339909407,1728147200715,-1340.11,0.00044109,120]
[339909408,1728147200724,-1185.33,0.00044109,120]
[339909409,1728147200734,-500.0,0.00044109,120]
[339909410,1728147200743,-1060.42,0.00044109,120]
[339909411,1728147200753,-1130.0,0.00044109,120]
[339909412,1728147200764,-952.13,0.00044109,120]
[339909413,1728147200773,-865.66,0.00044109,120]
[339909414,1728147200783,-502.02733036,0.00044109,120]
[339909415,1728147200793,-996.76,0.00044109,120]
[339909416,1728147200803,-1128.68,0.00044109,120]
[339909417,1728147200812,-585.41,0.00044109,120]
[339909418,1728147200821,-1208.3,0.00044109,120]
[339909419,1728147200831,-500.0,0.00044109,120]
[339909420,1728147200840,-999.01,0.00044109,120]
[339909421,1728147200850,-508.91,0.00044109,120]
[339909422,1728147200859,-500.0,0.00044109,120]
[339909423,1728147200871,-868.76,0.00044109,120]
[339909424,1728147200881,-1096.8,0.00044109,120]
[339909425,1728147200892,-613.51,0.00044109,120]
[339909426,1728147200901,-930.7,0.00044109,120]
[339909427,1728147200911,-500.0,0.00044109,120]
[339909428,1728147200921,-646.65,0.00044109,120]
[339909429,1728147200931,-1272.74,0.00044109,120]
[339909430,1728147200941,-504.49,0.00044109,120]
[339909431,1728147200951,-937.71,0.00044109,120]
[339909432,1728147200960,-845.63,0.00044109,120]
[339909433,1728147200970,-1381.8,0.00044109,120]
[339909434,1728147200980,-500.0,0.00044109,120]
[339909435,1728147200989,-500.0,0.00044109,120]
[339909436,1728147200999,-500.0,0.00044109,120]
[339909437,1728147201009,-741.0,0.00044109,120]
[339909438,1728147201018,-500.0,0.00044109,120]
[339909439,1728147201028,-982.24,0.00044109,120]
[339909440,1728147201038,-500.0,0.00044109,120]
[339909441,1728147201048,-1105.62,0.00044109,120]
[339909442,1728147201059,-877.47,0.00044109,120]
[339909443,1728147201069,-994.36,0.00044109,120]
[339909444,1728147201079,-500.0,0.00044109,120]
[339909445,1728147201088,-1035.51,0.00044109,120]
[339909446,1728147201098,-500.0,0.00044109,120]
[339909447,1728147201108,-500.0,0.00044109,120]
[339909448,1728147201118,-989.87,0.00044109,120]
[339909449,1728147201127,-500.0,0.00044109,120]
[339909450,1728147201137,-500.0,0.00044109,120]
[339909451,1728147201146,-871.55,0.00044109,120]
[339909452,1728147201156,-1333.03,0.00044109,120]
[339909453,1728147201166,-925.19,0.00044109,120]
[339909454,1728147201176,-500.0,0.00044109,120]
[339909455,1728147201185,-1502.02,0.00044109,120]
[339909456,1728147201195,-889.77,0.00044109,120]
[339909457,1728147201205,-600.24,0.00044109,120]
[339909458,1728147201214,-717.54,0.00044109,120]
[339909459,1728147201224,-963.18,0.00044109,120]
[339909460,1728147201234,-551.7,0.00044109,120]
[339909461,1728147201243,-1246.88,0.00044109,120]
[339909462,1728147201252,-584.17,0.00044109,120]
[339909463,1728147201262,-518.72,0.00044109,120]
[339909464,1728147201272,-500.0,0.00044109,120]
[339909465,1728147201282,-500.0,0.00044109,120]
[339909466,1728147201292,-1465.78,0.00044109,120]
[339909467,1728147201302,-500.0,0.00044109,120]
[339909468,1728147201311,-1472.61,0.00044109,120]
[339909469,1728147201321,-848.55,0.00044109,120]
[339909470,1728147201332,-500.0,0.00044109,120]
[339909471,1728147201342,-779.41,0.00044109,120]
[339909472,1728147201351,-777.28,0.00044109,120]
[339909473,1728147201362,-1683.21,0.00044109,120]
[339909474,1728147201372,-1078.6,0.00044109,120]
[339909475,1728147201382,-1725.49,0.00044109,120]
[339909476,1728147201391,-587.6,0.00044109,120]
[339909477,1728147201402,-600.74,0.00044109,120]
[339909478,1728147201412,-659.83,0.00044109,120]
[339909479,1728147201422,-706.43,0.00044109,120]
[339909480,1728147201432,-1054.81,0.00044109,120]
[339909481,1728147201442,-500.0,0.00044109,120]
[339909482,1728147201452,-1280.81,0.00044109,120]
[339909483,1728147201462,-500.0,0.00044109,120]
[339909484,1728147201472,-1363.15,0.00044109,120]
[339909485,1728147201485,-500.0,0.00044109,120]
[339909486,1728147201495,-905.57,0.00044109,120]
[339909487,1728147201505,-500.0,0.00044109,120]
[339909488,1728147201514,-1284.12,0.00044109,120]
[339909489,1728147201526,-1235.27,0.00044109,120]
[339909490,1728147201535,-637.05,0.00044109,120]
[339909491,1728147201545,-1285.68,0.00044109,120]
[339909492,1728147201556,-503.25,0.00044109,120]
[339909493,1728147201566,-500.0,0.00044109,120]
[339909494,1728147201575,-938.91,0.00044109,120]
[339909495,1728147201585,-500.0,0.00044109,120]
[339909496,1728147201595,-1214.24,0.00044109,120]
[339909497,1728147201605,-669.13,0.00044109,120]
[339909498,1728147201615,-950.76,0.00044109,120]
[339909499,1728147201625,-1555.77,0.00044109,120]
[339909500,1728147201635,-500.0,0.00044109,120]
[339909501,1728147201645,-1046.87,0.00044109,120]
[339909502,1728147201655,-766.5,0.00044109,120]
[339909503,1728147201664,-1076.33,0.00044109,120]
[339909504,1728147201675,-500.0,0.00044109,120]
[339909505,1728147201684,-773.6,0.00044109,120]
[339909506,1728147201694,-956.46,0.00044109,120]
[339909507,1728147201704,-500.0,0.00044109,120]
[339909508,1728147201713,-1442.35,0.00044109,120]
[339909509,1728147201723,-1211.84,0.00044109,120]
[339909510,1728147201732,-500.0,0.00044109,120]
[339909511,1728147201742,-658.69,0.00044109,120]
[339909512,1728147201752,-1361.72,0.00044109,24]
[339909513,1728147201762,-515.80227146,0.00044109,120]
[339909514,1728147201771,-1120.5,0.00044109,120]
[339909515,1728147201780,-500.0,0.00044109,120]
[339909516,1728147201790,-1128.3,0.00044109,120]
[339909517,1728147201801,-500.0,0.00044109,120]
[339909518,1728147201811,-723.77,0.00044109,120]
[339909519,1728147201821,-627.25,0.00044109,120]
[339909520,1728147201831,-1143.9,0.00044109,120]
[339909521,1728147201841,-502.75,0.00044109,120]
[339909522,1728147201851,-1054.07,0.00044109,120]
[339909523,1728147201861,-1458.38,0.00044109,120]
[339909524,1728147201870,-680.05,0.00044109,120]
[339909525,1728147201880,-2308.66,0.00044109,120]
[339909526,1728147201890,-526.17,0.00044109,120]
[339909527,1728147201900,-958.76,0.00044109,120]
[339909528,1728147201910,-521.35,0.00044109,120]
[339909529,1728147201993,-500.0,0.00044109,120]
[339909530,1728147202005,-500.0,0.00044109,120]
[339909531,1728147202016,-772.75,0.00044109,120]
[339909532,1728147202025,-957.22,0.00044109,120]
[339909533,1728147202035,-1182.56,0.00044109,120]
[339909534,1728147202045,-658.49,0.00044109,120]
[339909535,1728147202055,-500.0,0.00044109,120]
[339909536,1728147202065,-500.0,0.00044109,120]
[339909537,1728147202075,-764.47,0.00044109,120]
[339909538,1728147202085,-1230.05,0.00044109,120]
[339909539,1728147202096,-164.36,0.00044109,120]
[339909540,1728147202107,-872.43,0.00044109,120]
[339909541,1728147202117,-611.65,0.00044109,120]
[339909542,1728147202126,-842.7,0.00044109,120]
[339909543,1728147202136,-500.0,0.00044109,120]
[339909544,1728147202145,-821.45,0.00044109,120]
[339909545,1728147202154,-1020.54,0.00044109,120]
[339909546,1728147202164,-508.95,0.00044109,120]
[339909547,1728147202173,-500.0,0.00044109,120]
[339909548,1728147202183,-500.0,0.00044109,120]
[339909549,1728147202192,-1095.31,0.00044109,120]
[339909550,1728147202202,-1129.38,0.00044109,120]
[339909551,1728147202212,-500.0,0.00044109,120]
[339909552,1728147202222,-500.0,0.00044109,120]
[339909553,1728147202230,-500.0,0.00044109,120]
[339909554,1728147202239,-500.0,0.00044109,120]
[339909555,1728147202248,-500.0,0.00044109,120]
[339909556,1728147202258,-794.7,0.00044109,120]
[339909557,1728147202267,-830.85,0.00044109,120]
[339909558,1728147202276,-500.0,0.00044109,120]
[339909559,1728147202285,-1027.89,0.00044109,120]
[339909560,1728147202295,-1487.21,0.00044109,120]
[339909561,1728147202304,-1056.64,0.00044109,120]
[339909562,1728147202313,-500.0,0.00044109,120]
[339909563,1728147202323,-500.0,0.00044109,120]
[339909564,1728147202333,-966.23,0.00044109,120]
[339909565,1728147202342,-1402.9,0.00044109,120]
[339909566,1728147202351,-500.0,0.00044109,120]
[339909567,1728147202360,-500.0,0.00044109,120]
[339909568,1728147202369,-605.78,0.00044109,120]
[339909569,1728147202378,-500.0,0.00044109,120]
[339909570,1728147202388,-534.83,0.00044109,120]
[339909571,1728147202397,-1181.15,0.00044109,120]
[339909572,1728147202406,-567.65,0.00044109,120]
[339909573,1728147202415,-540.58,0.00044109,120]
[339909574,1728147202425,-602.72,0.00044109,120]
[339909575,1728147202435,-942.98,0.00044109,120]
[339909576,1728147202445,-500.0,0.00044109,120]
[339909577,1728147202457,-739.94,0.00044109,120]
[339909578,1728147202466,-500.0,0.00044109,120]
[339909579,1728147202476,-1122.04,0.00044109,120]
[339909580,1728147202490,-1176.15,0.00044109,120]
[339909581,1728147202500,-960.92,0.00044109,120]
[339909582,1728147202510,-500.0,0.00044109,120]
[339909583,1728147202518,-1087.37,0.00044109,120]
[339909584,1728147202527,-500.0,0.00044109,120]
[339909585,1728147202537,-548.14,0.00044109,120]
[339909586,1728147202546,-500.0,0.00044109,120]
[339909587,1728147202556,-500.0,0.00044109,120]
[339909588,1728147202566,-894.57,0.00044109,120]
[339909589,1728147202576,-808.84,0.00044109,120]
[339909590,1728147202585,-187.70175272,0.00044109,120]
[339909591,1728147202595,-744.22,0.00044109,120]
[339909592,1728147202604,-795.88,0.00044109,120]
[339909593,1728147202613,-1106.31,0.00044109,120]
[339909594,1728147202623,-500.0,0.00044109,120]
[339909595,1728147202632,-719.91,0.00044109,120]
[339909596,1728147202641,-500.0,0.00044109,120]
[339909597,1728147202651,-912.73,0.00044109,120]
[339909598,1728147202660,-519.73,0.00044109,120]
[339909599,1728147202670,-1177.68,0.00044109,120]
[339909600,1728147202679,-780.08,0.00044109,14]
[339909601,1728147202688,-789.28,0.00044109,120]
[339909602,1728147202697,-669.75,0.00044109,120]
[339909603,1728147202707,-750.93,0.00044109,120]
[339909604,1728147202716,-1092.22,0.00044109,120]
[339909605,1728147202725,-1378.36,0.00044109,120]
[339909606,1728147202734,-535.24,0.00044109,120]
[339909607,1728147202743,-745.48,0.00044109,120]
[339909608,1728147202753,-500.0,0.00044109,120]
[339909609,1728147202763,-1306.31,0.00044109,120]
[339909610,1728147202771,-500.0,0.00044109,120]
[339909611,1728147202781,-524.51,0.00044109,120]
[339909612,1728147202791,-513.93,0.00044109,120]
[339909613,1728147202800,-645.77,0.00044109,120]
[339909614,1728147202810,-833.87,0.00044109,120]
[339909615,1728147202819,-500.0,0.00044109,120]
[339909616,1728147202829,-1307.93,0.00044109,120]
[339909617,1728147202839,-1199.16,0.00044109,120]
[339909618,1728147202848,-500.0,0.00044109,120]
[339909619,1728147202857,-500.0,0.00044109,120]
[339909620,1728147202866,-985.84,0.00044109,120]
[339909621,1728147202875,-1049.3,0.00044109,120]
[339909622,1728147202885,-1294.19,0.00044109,120]
[339909623,1728147202894,-793.27,0.00044109,120]
[339909624,1728147202903,-205.66,0.00044109,120]
[339909625,1728147202912,-183.30503686,0.00044109,120]
[339909626,1728147202922,-2888.1,0.00044109,120]
[339909627,1728147202931,-687.14,0.00044109,120]
[339909628,1728147202940,-989.98,0.00044109,120]
[339909629,1728147202950,-500.0,0.00044109,120]
[339909630,1728147202959,-1432.95,0.00044109,120]
[339909631,1728147202969,-550.68,0.00044109,120]
[339909632,1728147202978,-724.21,0.00044109,120]
[339909633,1728147202987,-543.28,0.00044109,120]
[339909634,1728147202997,-578.41088199,0.00044109,120]
[339909635,1728147203007,-753.39,0.00044109,120]
[339909636,1728147203017,-807.23,0.00044109,120]
[339909637,1728147203027,-500.0,0.00044109,120]
[339909638,1728147203036,-708.64,0.00044109,120]
[339909639,1728147203046,-562.5,0.00044109,120]
[339909640,1728147203056,-500.0,0.00044109,120]
[339909641,1728147203065,-1195.82,0.00044109,120]
[339909642,1728147203074,-905.32,0.00044109,7]
[339909643,1728147203084,-1289.36,0.00044109,120]
[339909644,1728147203093,-968.05,0.00044109,120]
[339909645,1728147203102,-687.72,0.00044109,120]
[339909646,1728147203112,-1417.19,0.00044109,120]
[339909647,1728147203122,-763.68,0.00044109,120]
[339909648,1728147203131,-500.0,0.00044109,120]
[339909649,1728147203140,-1687.35,0.00044109,120]
[339909650,1728147203150,-888.0,0.00044109,120]
[339909651,1728147203159,-785.36,0.00044109,120]
[339909652,1728147203167,-500.0,0.00044109,120]
[339909653,1728147203176,-1179.64,0.00044109,120]
[339909654,1728147203186,-582.36,0.00044109,120]
[339909655,1728147203196,-643.53,0.00044109,120]
[339909656,1728147203205,-1536.92,0.00044109,120]
[339909657,1728147203215,-1213.33,0.00044109,120]
[339909658,1728147203224,-533.33,0.00044109,120]
[339909659,1728147203234,-711.86,0.00044109,120]
[339909660,1728147203243,-1142.18,0.00044109,120]
[339909661,1728147203253,-786.32,0.00044109,120]
[339909662,1728147203262,-1479.11,0.00044109,120]
[339909663,1728147203272,-500.0,0.00044109,120]
[339909664,1728147203281,-649.26,0.00044109,120]
[339909665,1728147203291,-500.0,0.00044109,120]
[339909666,1728147203300,-903.52,0.00044109,120]
[339909667,1728147203310,-421.29116171,0.00044109,120]
[339909668,1728147203319,-915.1,0.00044109,120]
[339909669,1728147203329,-642.95,0.00044109,120]
[339909670,1728147203339,-500.0,0.00044109,120]
[339909671,1728147203348,-1032.8,0.00044109,120]
[339909672,1728147203358,-931.55,0.00044109,120]
[339909673,1728147203367,-500.0,0.00044109,120]
[339909674,1728147203378,-1521.03,0.00044109,120]
[339909675,1728147203387,-500.0,0.00044109,120]
[339909676,1728147203397,-901.49,0.00044109,120]
[339909677,1728147203406,-500.0,0.00044109,120]
[339909678,1728147203417,-1304.21,0.00044109,120]
[339909679,1728147203428,-1061.61,0.00044109,120]
[339909680,1728147203438,-701.97,0.00044109,120]
[339909681,1728147203447,-1011.56,0.00044109,120]
[339909682,1728147203459,-534.36,0.00044109,120]
[339909683,1728147203467,-589.66,0.00044109,120]
[339909684,1728147203477,-500.0,0.00044109,120]
[339909685,1728147203489,-512.82,0.00044109,120]
[339909686,1728147203498,-1198.94,0.00044109,120]
[339909687,1728147203507,-836.31,0.00044109,120]
[339909688,1728147203516,-908.97,0.00044109,120]
[339909689,1728147203526,-714.05,0.00044109,120]
[339909690,1728147203536,-787.9,0.00044109,120]
[339909691,1728147203545,-530.83,0.00044109,120]
[339909692,1728147203557,-1485.49,0.00044109,120]
[339909693,1728147203572,-500.0,0.00044109,120]
[339909694,1728147203582,-763.04,0.00044109,120]
[339909695,1728147203591,-518.08,0.00044109,120]
[339909696,1728147203601,-500.0,0.00044109,120]
[339909697,1728147203610,-500.0,0.00044109,120]
[339909698,1728147203619,-612.29,0.00044109,120]
[339909699,1728147203629,-563.43,0.00044109,120]
[339909700,1728147203638,-500.0,0.00044109,120]
[339909701,1728147203649,-822.39,0.00044109,120]
[339909702,1728147203658,-500.0,0.00044109,120]
[339909703,1728147203667,-1306.65,0.00044109,120]
[339909704,1728147203677,-1233.21,0.00044109,120]
[339909705,1728147203687,-868.45,0.00044109,120]
[339909706,1728147203696,-732.59,0.00044109,120]
[339909707,1728147203706,-500.0,0.00044109,120]
[339909708,1728147203716,-583.48,0.00044109,120]
[339909709,1728147203725,-1321.45,0.00044109,120]
[339909710,1728147203735,-528.8,0.00044109,120]
[339909711,1728147203745,-658.55,0.00044109,120]
[339909712,1728147203755,-500.0,0.00044109,120]
[339909713,1728147203764,-500.0,0.00044109,120]
[339909714,1728147203774,-500.0,0.00044109,120]
[339909715,1728147203783,-500.0,0.00044109,120]
[339909716,1728147203793,-993.81,0.00044109,120]
[339909717,1728147203802,-500.0,0.00044109,120]
[339909718,1728147203815,-500.0,0.00044109,120]
[339909719,1728147203824,-500.0,0.00044109,120]
[339909720,1728147203833,-1392.91,0.00044109,120]
[339909721,1728147203843,-536.60183568,0.00044109,120]
[339909722,1728147203852,-694.83,0.00044109,120]
[339909723,1728147203862,-500.0,0.00044109,120]
[339909724,1728147203872,-953.14,0.00044109,120]
[339909725,1728147203882,-500.0,0.00044109,120]
[339909726,1728147203891,-698.41,0.00044109,120]
[339909727,1728147203901,-771.14,0.00044109,120]
[339909728,1728147203911,-885.57,0.00044109,120]
[339909729,1728147203921,-702.92,0.00044109,120]
[339909730,1728147203931,-1011.8,0.00044109,120]
[339909731,1728147203940,-563.02,0.00044109,120]
[339909732,1728147203950,-1565.99,0.00044109,120]
[339909733,1728147203959,-1294.33,0.00044109,120]
[339909734,1728147203968,-918.37,0.00044109,120]
[339909735,1728147203977,-690.04,0.00044109,120]
[339909736,1728147203986,-500.0,0.00044109,120]
[339909737,1728147203996,-666.23,0.00044109,120]
[339909738,1728147204005,-894.45,0.00044109,120]
[339909739,1728147204014,-288.98047562,0.00044109,120]
[339909740,1728147204024,-500.0,0.00044109,120]
[339909741,1728147204034,-254.88652844,0.00044109,120]
[339909742,1728147204043,-762.45,0.00044109,120]
[339909743,1728147204052,-588.86,0.00044109,120]
[339909744,1728147204063,-1037.04,0.00044109,120]
[339909745,1728147204073,-729.96,0.00044109,120]
[339909746,1728147204082,-500.0,0.00044109,120]
[339909747,1728147204091,-500.0,0.00044109,120]
[339909748,1728147204101,-922.09,0.00044109,120]
[339909749,1728147204111,-544.04,0.00044109,120]
[339909750,1728147204120,-500.0,0.00044109,120]
[339909751,1728147204129,-500.0,0.00044109,120]
[339909752,1728147204139,-1207.02,0.00044109,120]
[339909753,1728147204148,-1060.1,0.00044109,120]